Cogmind - Beta 14 @@@ ROGUE MODE // 2024.08.14 @ 00:55:23 Player: Dzuchun Result: Destroyed by G-47 Trooper with Particle Gun Performance ------------- Evolutions (0) 0 Regions Visited (1) 200 Robots Destroyed (6) 30 Value Destroyed (45) 45 Prototype IDs (0) 0 Alien Tech Used (0) 0 Bonus (0) 0 TOTAL SCORE: 275 Bonus ------- None Cogmind --------- Core Integrity 0/250 Matter 300/300 Energy 100/100 System Corruption 8% Temperature Cool (9) Movement Core (100) Ox1 Location -10/Materials Parts ------- > --- POWER (1) -------- (None) > --- PROPULSION (2) --- (None) > --- UTILITY (2) ------ Small Storage Unit > --- WEAPON (2) ------- (None) > --- INVENTORY (8) ---- Medium Matter Pod (100) Improved Terrain Scanner Improved Terrain Scanner Mining Laser Peak State ------------ > --- POWER ------------ Ion Engine > --- PROPULSION ------- Light Treads Light Treads > --- UTILITY ---------- Improved Terrain Scanner Seismic Detector > --- WEAPON ----------- EM Pulse Gun EM Pulse Gun > --- INVENTORY -------- Light Ion Engine Small Storage Unit [Rating: 9] Favorites ----------- Power Light Ion Engine Engine Light Ion Engine Propulsion Light Treads Treads Light Treads Utility Seismic Detector Device Seismic Detector Storage Small Storage Unit Weapon EM Pulse Gun Energy Gun EM Pulse Gun Build | -11 -10 ------- Run | Yrd Mat Slots Evolved . | . . Power . | . . Propulsion . | . . Utility . | . . Weapon . | . . Parts Attached 10 | 9 1 Power 3 | 2 1 Engine 3 | 2 1 Core . | . . Reactor . | . . Propulsion 2 | 2 . Treads 2 | 2 . Leg . | . . Wheel . | . . Hover . | . . Flight . | . . Utility 3 | 3 . Device 2 | 2 . Storage 1 | 1 . Processor . | . . Hackware . | . . Protection . | . . Artifact . | . . Weapon 2 | 2 . Energy Gun 2 | 2 . Energy Cannon . | . . Ballistic Gun . | . . Ballistic Cannon . | . . Launcher . | . . Special Weapon . | . . Impact Weapon . | . . Slashing Weapon . | . . Piercing Weapon . | . . Special Melee Weapon . | . . Unidentified Prototypes . | . . Parts Lost 7 | . 7 Power 2 | . 2 Propulsion 2 | . 2 Utility 1 | . 1 Weapon 2 | . 2 Highest Loss Streak 7 | . 7 To Critical Strikes . | . . Average Slot Usage (%) 87 | . 87 Engine 12 | . 12 Treads 24 | . 24 Device 13 | . 13 Storage 14 | . 14 Energy Gun 21 | . 21 Peak Build Rating 9 | 9 7 Average Rating 6 | 6 6 On Entrance 3 | . 7 Naked Turns . | . . Heaviest Build 13 | 13 13 Greatest Support 40 | 40 40 Greatest Overweight (x) 2 | . 2 Average Overweight (x) . | . . Largest Inventory Capacity 8 | 8 8 Average Capacity 6 | 5 8 Most Carried 5 | 3 5 Average Carried 3 | 1 4 Final Capacity 8 | 8 8 Final Carried 4 | 3 4 Class Distribution -------------------- 100% | Mutant Dominant Class ---------------- Mutant | -10/Materials Resources | -11 -10 ----------- Run | Yrd Mat Matter Collected 295 | 290 5 Remotely . | . . Salvage Created 204 | 204 . Parts 17 | 17 . Haulers Intercepted . | . . Recyclers Shooed . | . . Parts Field Recycled . | . . Retrieved Matter . | . . Parts Self-Destructed . | . . Prevented . | . . Kills | -11 -10 ------- Run | Yrd Mat Combat Hostiles Destroyed . | . . Classes Destroyed 3 | 3 . Worker 1 | 1 . Tunneler 4 | 4 . Recycler 1 | 1 . Best Kill Streak 2 | 2 . Combat Bots Only . | . . Max Kills in Single Turn 1 | 1 . Gunslinging . | . . Exploded . | . . Melee . | . . Uniques/NPCs Destroyed . | . . Combat | -11 -10 -------- Run | Yrd Mat Hostile Shots Fired 73 | . 73 Missed 21 | . 21 Damage Taken 837 | 27 810 Core 257 | . 257 Absorbed by Shields . | . . Core Remaining (%) 100 | 100 . Volleys Fired 17 | 11 6 Largest 2 | 2 2 Hottest 80 | 80 80 Shots Fired 32 | 22 10 Gun 32 | 22 10 Cannon . | . . Launcher . | . . Special . | . . Kinetic . | . . Thermal . | . . Explosive . | . . Electromagnetic 32 | 22 10 Robot Hit Streak 9 | 7 9 Robot Miss Streak 5 | 2 5 Penetration Max . | . . Secondary Targets . | . . Shots Hit Robots 18 | 14 4 Core Hits 10 | 7 3 Critical Kills . | . . Critical Parts Destroyed . | . . Critical Strikes . | . . Melee Attacks . | . . Impact . | . . Slashing . | . . Piercing . | . . Sneak Attacks . | . . Combat Hostiles . | . . Follow-up Attacks . | . . Damage Inflicted 371 | 229 142 Guns 235 | 183 52 Cannons . | . . Explosions 67 | 46 21 Melee . | . . Ramming 69 | . 69 Kinetic . | . . Thermal 67 | 46 21 Explosive . | . . Electromagnetic 235 | 183 52 Impact . | . . Slashing . | . . Piercing . | . . Highest Corruption 8 | . 8 Average Corruption 2 | . 2 Corruption Purged . | . . Corruption Blocked . | . . Effects 3 | . 3 Message Errors 1 | . 1 Heat Flow Errors 1 | . 1 Alerts 1 | . 1 Overload Shots . | . . Overflow Damage . | . . Projectiles . | . . Explosions . | . . Melee . | . . Knockbacks 1 | . 1 Impact 1 | . 1 Kinetic . | . . Secondary . | . . Self-Inflicted Damage 87 | 27 60 Shots 2 | 1 1 Rammed 52 | . 52 Targets Rammed 52 | . 52 Kicked . | . . Crushed . | . . Highest Temperature 171 | 66 171 Average Temperature 50 | 26 78 Received Heat Transfer 441 | . 441 Siege Activations . | . . Robots Corrupted . | . . Combat Hostiles . | . . Parts Fried . | . . Impact Corruptions . | . . Robots Melted . | . . Combat Hostiles . | . . Parts Melted . | . . Heat Transferred 100 | 50 50 Parts Sabotaged . | . . Parts Stolen . | . . Parts Stripped . | . . Power Chain Reactions 2 | 1 1 Alert | -11 -10 ------- Run | Yrd Mat Peak Influence 39 | 30 39 Initial 19 | . 19 Average 15 | 12 17 Maximum Alert Level . | . . Low Security (%) 100 | 100 100 Level 1 . | . . Level 2 . | . . Level 3 . | . . Level 4 . | . . Level 5 . | . . High Security . | . . Max Security . | . . Squads Dispatched . | . . Investigation . | . . Extermination . | . . Reinforcement . | . . Assault . | . . Garrison . | . . Intercept . | . . Searches Triggered . | . . Construction Impeded . | . . Haulers Reinforced . | . . Active Scanning Responses . | . . Cargo Convoy Interrupts . | . . Stealth | -11 -10 --------- Run | Yrd Mat Distress Signals . | . . Communications Jammed . | . . Distress Signals . | . . Times Spotted 2 | . 2 Peak Tracking Total 2 | . 2 Tactical Retreats . | . . Traps | -11 -10 ------- Run | Yrd Mat Traps Triggered 1 | . 1 Indirectly . | . . Trap Hack Attempts . | . . Triggered . | . . Disarmed . | . . Reprogrammed . | . . Reused . | . . Traps Extracted . | . . Installed . | . . Triggered . | . . Machines | -11 -10 ---------- Run | Yrd Mat Machines Disabled 1 | . 1 Max in Single Turn 1 | . 1 Machines Repaired . | . . Machines Dismantled . | . . Machines Sabotaged . | . . Overloaded Fab Kills . | . . Hacking | -11 -10 --------- Run | Yrd Mat Machines Accessed 1 | . 1 Terminals 1 | . 1 Fabricators . | . . Repair Stations . | . . Recycling Units . | . . Scanalyzers . | . . Garrison Access . | . . Total Hacks 3 | . 3 Successful . | . . Failed 3 | . 3 Catastrophic . | . . Database Lockouts . | . . Manual 3 | . 3 Terminals 3 | . 3 Fabricators . | . . Repair Stations . | . . Recycling Units . | . . Scanalyzers . | . . Garrison Access . | . . Terminal Hacks . | . . Fabricator Hacks . | . . Repair Station Hacks . | . . Recycling Unit Hacks . | . . Scanalyzer . | . . Garrison Access Hacks . | . . Unauthorized Hacks . | . . Terminals . | . . Fabricators . | . . Repair Stations . | . . Recycling Units . | . . Scanalyzers . | . . Garrison Access . | . . Data Cores Recovered . | . . Used . | . . Hacking Detections 1 | . 1 Full Trace Events 1 | . 1 Feedback Events . | . . Feedback Blocked . | . . Robot Schematics Acquired . | . . Robots Built . | . . Authchips . | . . Time . | . . Total Robot Build Rating . | . . Part Schematics Acquired . | . . Parts Built . | . . Authchips . | . . Time . | . . Total Part Build Rating . | . . Parts Repaired . | . . Time . | . . Parts Recycled . | . . Recycled Matter . | . . Retrieved Matter . | . . Retrieved Components . | . . Parts Scanalyzed . | . . Part Schematics Acquired . | . . Parts Damaged . | . . Bothacking | -11 -10 ------------ Run | Yrd Mat Used RIF Installer . | . . Robots Hacked . | . . Non-combat . | . . Combat . | . . Robot Hacks Applied . | . . Relay Couplers Released . | . . Fabnet Peak Effective % . | . . Robots Rewired . | . . Allies Hacked . | . . Hacks Repelled . | . . Allies | -11 -10 -------- Run | Yrd Mat Total Allies . | . . Largest Group . | . . Highest-Rated Group . | . . Highest-Rated Ally . | . . Total Orders . | . . Ally Attacks . | . . Total Damage . | . . Kills . | . . Allies Corrupted . | . . Allies Melted . | . . Intel | -11 -10 ------- Run | Yrd Mat Robot Analysis Total . | . . Derelict Logs Recovered . | . . Drone Launches . | . . Drone Recoveries . | . . Exploration | -11 -10 ------------- Run | Yrd Mat Turns Passed 548 | 229 319 Spaces Moved 254 | 114 140 Core 5 | 2 3 Treads 249 | 112 137 Legs . | . . Wheels . | . . Hover . | . . Flight . | . . Fastest Speed 50 | 50 100 Average Speed 158 | 158 159 Slowest Speed 160 | 160 160 Overloaded Moves . | . . Propulsion Burnouts . | . . Robots Hopped . | . . Cave-ins Triggered . | . . Exploration Rate (%) 16 | 6 26 Regions Visited 1 Branch Regions . Pre-discovered Areas . | . . Known Exits Taken . | . . Unknown Exits Taken 1 | 1 . Scrap Searched . | . . Spaces Dug . | . . Terrain Destroyed 4 | . 4 Melee . | . . Projectile . | . . AOE 4 | . 4 Terrain Rammed . | . . Walls Destroyed . | . . Machines Disabled . | . . Actions | -11 -10 --------- Run | Yrd Mat Total 351 | 138 213 Wait 12 | . 12 Move 253 | 113 140 Hop . | . . Pick Up 6 | 4 2 Fast Attach 6 | 6 . Attach 3 | 2 1 Detach 1 | 1 . Swap 1 | 1 . Drop . | . . Fire 17 | 11 6 Melee . | . . Ram 35 | . 35 Kick . | . . Crush 17 | . 17 Escape Stasis . | . . Rewire . | . . Trap . | . . Miscellaneous . | . . Route ------- -11/Scrapyard -10/Materials (discovered 2 exits: [*Mat] / [*Min]) History --------- Turn | Location | Event 83 | -11/Scrapyard | Discovered new exit (range 15) 230 | -11/Scrapyard | Entered Materials 307 | -10/Materials | Build established: Mutant 316 | -10/Materials | Discovered new exit (range 5) 370 | -10/Materials | Discovered new exit (range 10) 515 | -10/Materials | Core integrity fell below 50% 530 | -10/Materials | Core integrity fell below 20% 549 | -10/Materials | Destroyed by G-47 Trooper with Particle Gun Last Messages --------------- 00526_ Destabilizing: System interference. 00526_ Seismic Detector temporarily disabled. 00527_ Seismic Detector destroyed. 00527_ Slammed into G-34 Mercenary. 00527_ Destabilizing: System corrupted (+2). 00528_ Slammed into G-34 Mercenary. 00529_ Critical hit (Burn: +37). 00529_ Slammed into G-34 Mercenary. 00531_ Acquired 5 matter. 00531_ G-34 Mercenary misfires. 00531_ G-34 Mercenary destroyed. 00533_ Slammed into G-47 Trooper. 00537_ Lgt. Ion Engine destroyed. 00537_ Slammed into G-47 Trooper. 00538_ R-06 Scavenger collects Aluminum Leg. 00539_ Slammed into G-47 Trooper. 00539_ Destabilizing: Core damaged (-12). 00540_ Slammed into G-47 Trooper. 00547_ Destabilizing: Core damaged (-10). 00548_ Slammed into G-47 Trooper. Map ----- +----------------------------------------------------+ | ?????????# # #?# ## # # # | | ?????????# # """ #?# ## # # # | | ?????????# # """ ! #?# ### ## + # | | ?????????# # """ ### #### ### # # | | ?????????# + ## # # | | ?? # / # # | | # "T" ## # # | | ########## # """ ## + # | | ?????????# # ## # # | | ?????????# ########### ######## | | ?????????# #?????????# + # | | ?????????+ #?????????# """"" # """ # | | ?????????# ??????????# """"" # """ # | | ?????????# ??????????# #### """"" # """ # | | ?????????# ??????????#^#??# # # | | ????????? ??????????#^#??# # # | | ????????? ??????????# #??# """"" ######## | | ????????? ???########+##?# """"" #??????? | | ?????????? ???# ### " "" #??????? | | ????????????????# #"# ####???? | | ????????????????#% % %% # #???? | | ????????????????#%%% r%% + #???? | | ????????????????#%%% %% # #???? | | ????????????????#%% % # "########+####???? | | ????????????????#% %g# # ??# #???? | | ????????????????# a %@# # ## #???? | | ????????????????###/####### #? ## #???? | | ??????????????????# #?????# #?? ## """ #???? | | ??????????????????# #?????# #??? ## """ #???? | | ??????????????????? #?????# #????## """ #???? | | ??????????????????? #?????? ??????########???? | | ??????????????????? #?????? ?????????????????? | | ????????????????????#?????? ?????????????????? | | ??????????????????????????? ?????????????????? | | ??????????????????????????? ?????????????????? | | ??????????????????????????? ?????????????????? | | ??????????????????????????? ?????????????????? | | ?????????????????????????????????????????????? | | ?????????????????????????????????????????????? | | ?????????????????????????????????????????????? | | ?????????????????????????????????????????????? | | ?????????????????????????????????????????????? | | ?????????????????????????????????????????????? | | ?????????????????????????????????????????????? | | ?????????????????????????????????????????????? | | ?????????????????????????????????????????????? | | ?????????????????????????????????????????????? | | ?????????????????????????????????????????????? | | ?????????????????????????????????????????????? | | ?????????????????????????????????????????????? | +----------------------------------------------------+ Best States ------------- Heat Dissipation 25 Energy Generation 10 Energy Capacity 250 Matter Stores 300 Matter Capacity 300 Sight Range 16 Terrain Scan Range 16 Terrain Scan Density 10 Evasion (%) 40 Recoil Reduction 2 Item Schematics ----------------- None Robot Schematics ------------------ None Fabricated ------------ Nothing Alien Tech Used ----------------- None Achievements -------------- None Challenges ------------ None Game ------ Seed SignalAssemblyDrivehammer Manual? 0 Play Time 00:06:59 Cumulative 11.3 hours Start 2024.08.14 @ 00:50:35 End 2024.08.14 @ 00:55:23 Sessions 1 Manual Loads 0 Difficulty Rogue Special Mode None Game No. 17 Rogue 17 Adventurer 0 Explorer 0 Win Type - Total 0 Types 0/0/0/0/0/0/0/0/0 Lore% 7 Gallery% 13 Achievement% 15 Wizard Run 0 Options --------- Layout 0 ASCII 0 Keyboard 1 Movement Vi Keybinds 0 Fullscreen 1 Font 18/X11Bold Map View 76x50 Zoom Use 0% Tactical HUD 1 Map Filters NONE Filters NONE Steam 1 RUN: cd3ab02c-d377-4bc6-bec4-b472f13f4e67